bitfinex/quotes_BTCUSD_20250902
["timestamp","ask_amount","ask_price","bid_price","bid_amount"]
[1756783740685,2.68950363,110360.0,110350.0,1e-08]
[1756783740889,2.69688773,110360.0,110350.0,1e-08]
[1756783741098,2.69586773,110360.0,110350.0,1e-08]
[1756783741867,2.72420847,110360.0,110350.0,1e-08]
[1756783742046,2.72318847,110360.0,110350.0,1e-08]
[1756783743119,2.72420847,110360.0,110350.0,1e-08]
[1756783743325,7.81612446,110360.0,110350.0,1e-08]
[1756783743499,7.72420847,110360.0,110350.0,1e-08]
[1756783744118,7.75327658,110360.0,110350.0,1e-08]
[1756783744316,0.54856224,110350.0,110340.0,1e-08]
[1756783744516,6.69278415,110350.0,110340.0,1e-08]
[1756783744719,1.79370699,110350.0,110340.0,1e-08]
[1756783744885,1.79268699,110350.0,110340.0,1e-08]
[1756783745574,1.700771,110350.0,110340.0,1e-08]
[1756783745747,1.71534297,110350.0,110340.0,1e-08]
[1756783745943,1.69440415,110350.0,110340.0,1e-08]
[1756783746153,1.57516742,110350.0,110340.0,1e-08]
[1756783746795,1.57880042,110350.0,110340.0,1e-08]
[1756783746999,1.80655066,110350.0,110340.0,1e-08]
[1756783747208,1.8348914,110350.0,110340.0,1e-08]
[1756783748138,2.17559011,110350.0,110340.0,1e-08]
[1756783748358,2.74088989,110350.0,110340.0,1e-08]
[1756783748558,2.77870361,110350.0,110340.0,1e-08]
[1756783748766,1.78378913,110350.0,110340.0,1e-08]
[1756783748974,1.75534096,110350.0,110340.0,1e-08]
[1756783749178,1.74595541,110350.0,110340.0,1e-08]
[1756783749379,1.7483211,110350.0,110340.0,1e-08]
[1756783749645,1.75232115,110350.0,110340.0,1e-08]
[1756783749865,1.85125714,110350.0,110340.0,1e-08]
[1756783750058,1.87733957,110350.0,110340.0,1e-08]
[1756783750264,1.883706,110350.0,110340.0,1e-08]
[1756783750466,2.16803883,110350.0,110340.0,1e-08]
[1756783750928,2.16403883,110350.0,110340.0,1e-08]
[1756783751133,2.16703883,110350.0,110340.0,1e-08]
[1756783751460,2.07512284,110350.0,110340.0,1e-08]
[1756783751658,1.78073001,110350.0,110340.0,1e-08]
[1756783751869,1.74191541,110350.0,110340.0,1e-08]
[1756783752198,1.74591541,110350.0,110340.0,1e-08]
[1756783752382,1.74791541,110350.0,110340.0,1e-08]
[1756783752585,2.12016423,110350.0,110340.0,1e-08]
[1756783752772,2.15999942,110350.0,110340.0,1e-08]
[1756783753901,7.15999942,110350.0,110340.0,1e-08]
[1756783754123,7.16199942,110350.0,110340.0,1e-08]
[1756783754303,7.13755085,110350.0,110340.0,1e-08]
[1756783755321,7.78528462,110350.0,110340.0,1e-08]
[1756783755559,7.80150871,110350.0,110340.0,1e-08]
[1756783756864,7.7714206,110350.0,110340.0,1e-08]
[1756783757334,7.67950461,110350.0,110340.0,1e-08]
[1756783757523,6.62122612,110350.0,110340.0,1e-08]
[1756783757851,7.71308646,110350.0,110340.0,1e-08]
[1756783758074,7.49456341,110350.0,110340.0,1e-08]
[1756783758285,7.67580491,110350.0,110340.0,1e-08]
[1756783758720,7.67478491,110350.0,110340.0,1e-08]
[1756783759293,7.7677209,110350.0,110340.0,1e-08]
[1756783759482,7.67580491,110350.0,110340.0,1e-08]
[1756783759675,7.67478491,110350.0,110340.0,1e-08]
[1756783759890,7.6457168,110350.0,110340.0,1e-08]
[1756783760315,7.4904768,110350.0,110340.0,1e-08]
[1756783760522,7.63934978,110350.0,110340.0,1e-08]
[1756783760719,7.64571723,110350.0,110340.0,1e-08]
[1756783761162,7.71565425,110350.0,110340.0,1e-08]
[1756783761358,7.56041425,110350.0,110340.0,1e-08]
[1756783761583,6.79357278,110350.0,110340.0,1e-08]
[1756783762844,6.63833278,110350.0,110340.0,1e-08]
[1756783763074,6.79357278,110350.0,110340.0,1e-08]
[1756783763888,0.20221317,110330.0,110320.0,8e-05]
[1756783764089,1.04326779,110330.0,110320.0,8e-05]
[1756783764300,1.04326779,110330.0,110320.0,0.00204]
[1756783764969,0.88802779,110330.0,110320.0,0.00204]
[1756783765169,1.09059089,110330.0,110320.0,0.00204]
[1756783766000,1.09059089,110330.0,110320.0,0.00512]
[1756783767596,0.93539089,110330.0,110320.0,0.00512]
[1756783767833,0.49403513,110330.0,110320.0,0.00512]
[1756783768047,0.59719864,110330.0,110320.0,0.00512]
[1756783768267,0.75239864,110330.0,110320.0,0.00512]
[1756783768715,0.75339864,110330.0,110320.0,0.00512]
[1756783768931,0.75239864,110330.0,110320.0,0.00512]
[1756783769143,0.75139864,110330.0,110320.0,0.00512]
[1756783770451,0.75239864,110330.0,110320.0,0.00512]
[1756783771149,0.75139864,110330.0,110320.0,0.00512]
[1756783771706,1.09139864,110330.0,110320.0,0.00512]
[1756783771925,0.46592473,110310.0,110300.0,0.19075963]
[1756783772201,0.46592473,110310.0,110300.0,0.28267562]
[1756783772439,0.18130722,110310.0,110300.0,0.28463562]
[1756783772666,0.46592473,110310.0,110300.0,0.28463562]
[1756783773156,0.28461751,110310.0,110300.0,0.28463562]
[1756783773391,0.28461751,110310.0,110300.0,0.28763562]
[1756783773392,0.2847589,110310.0,110300.0,0.28763562]
[1756783773892,0.00014139,110310.0,110300.0,0.29071562]
[1756783774121,0.00014139,110310.0,110300.0,0.29271562]
[1756783776862,0.00014139,110310.0,110300.0,0.44787562]
[1756783777328,0.00014139,110310.0,110300.0,0.73249313]
[1756783777820,0.00014139,110310.0,110300.0,0.44787562]
[1756783779700,0.00014139,110310.0,110300.0,0.44783562]
[1756783782265,0.00014139,110310.0,110300.0,0.73241313]
[1756783783200,0.00014139,110310.0,110300.0,0.44779562]
[1756783788168,0.00014139,110310.0,110300.0,0.36243562]
[1756783788325,0.2847589,110310.0,110300.0,0.51751562]
[1756783788857,0.00014139,110310.0,110300.0,0.51751562]
[1756783791863,0.00014139,110310.0,110300.0,0.91751562]
[1756783794066,0.00014139,110310.0,110300.0,0.51751562]
[1756783794368,0.00014139,110310.0,110300.0,0.91751562]
[1756783797930,0.00014139,110310.0,110300.0,0.76243562]
[1756783798134,0.00014139,110310.0,110300.0,0.91747562]
[1756783799055,0.00014139,110310.0,110300.0,0.51747562]
[1756783800773,0.00014139,110310.0,110300.0,0.53837444]
[1756783801057,0.00014139,110310.0,110300.0,0.82299195]
[1756783801425,1.615e-05,110310.0,110300.0,0.82299195]
[1756783801636,1.615e-05,110310.0,110300.0,1.29023495]
[1756783802298,1.615e-05,110310.0,110300.0,1.00561744]
[1756783802575,1.615e-05,110310.0,110300.0,1.29023495]
[1756783803247,1.615e-05,110310.0,110300.0,1.69023495]
[1756783807165,1.615e-05,110310.0,110300.0,1.40561744]
[1756783807375,1.615e-05,110310.0,110300.0,1.69023495]
[1756783808788,1.615e-05,110310.0,110300.0,1.73191868]
[1756783811314,1.615e-05,110310.0,110300.0,2.01653619]
[1756783811600,0.35816382,110340.0,110330.0,0.18127435]
[1756783811908,0.07555631,110340.0,110330.0,0.42815034]
[1756783812105,0.36017382,110340.0,110330.0,0.42815034]
[1756783812318,0.36314382,110340.0,110330.0,0.42815034]
[1756783812709,0.28959751,110340.0,110330.0,0.42815034]
[1756783812907,0.00498,110340.0,110330.0,0.42915034]
[1756783813109,0.28959751,110340.0,110330.0,0.42915034]
[1756783813321,0.00498,110340.0,110330.0,0.43115034]
[1756783813526,0.28959751,110340.0,110330.0,0.43115034]
[1756783813738,0.00498,110340.0,110330.0,0.43115034]
[1756783813943,0.00498,110340.0,110330.0,0.43015034]
[1756783814664,0.28959751,110340.0,110330.0,0.43015034]
[1756783814863,0.00498,110340.0,110330.0,0.45109916]
[1756783815069,0.00498,110340.0,110330.0,0.44908916]
[1756783815281,0.00498,110340.0,110330.0,0.48132616]
[1756783816915,0.00498,110340.0,110330.0,0.55100616]
[1756783818014,0.02071966,110350.0,110340.0,0.18125793]
[1756783818234,0.28676909,110350.0,110340.0,0.27317392]
[1756783818819,0.02600489,110350.0,110340.0,0.27317392]
[1756783819228,0.02600489,110350.0,110340.0,0.27417392]
[1756783819466,0.00512158,110350.0,110340.0,0.27617392]
[1756783819868,0.00215158,110350.0,110340.0,0.27818392]
[1756783820069,0.00014158,110350.0,110340.0,0.29912274]
[1756783820886,0.00014158,110350.0,110340.0,0.30233274]
[1756783822251,0.00014158,110350.0,110340.0,0.32956674]
[1756783822472,0.00014158,110350.0,110340.0,0.61418425]
[1756783822689,0.00014158,110350.0,110340.0,0.32956674]
[1756783823561,0.00014158,110350.0,110340.0,0.61379336]
[1756783826114,0.00014158,110350.0,110340.0,0.32956674]
[1756783826318,0.00014158,110350.0,110340.0,0.61379336]
[1756783827454,0.00014158,110350.0,110340.0,0.32956674]
[1756783827685,0.00512158,110350.0,110340.0,0.48131674]
[1756783828101,0.00512158,110350.0,110340.0,0.76554336]
[1756783828319,0.00215158,110350.0,110340.0,0.76554336]
[1756783828543,0.00215158,110350.0,110340.0,0.32635674]
[1756783828765,0.00215158,110350.0,110340.0,0.76554336]
[1756783828981,0.00014158,110350.0,110340.0,0.76554336]
[1756783829869,0.00215158,110350.0,110340.0,0.48131674]
[1756783830310,0.00215158,110350.0,110340.0,0.76554336]
[1756783830529,0.00014158,110350.0,110340.0,0.76554336]
[1756783830787,0.00014158,110350.0,110340.0,0.61379336]
[1756783831014,0.00014158,110350.0,110340.0,0.76871336]
[1756783834629,0.00014158,110350.0,110340.0,0.61379336]
[1756783834849,0.00014158,110350.0,110340.0,0.48448674]
[1756783835055,0.00014158,110350.0,110340.0,0.76871336]
[1756783835271,0.00014158,110350.0,110340.0,1.10293998]
[1756783835484,0.00014158,110350.0,110340.0,0.81871336]
[1756783835825,0.00014158,110350.0,110340.0,1.21871336]
[1756783836821,0.00014158,110350.0,110340.0,0.93448674]
[1756783837022,0.00014158,110350.0,110340.0,1.21871336]
[1756783837248,0.00212158,110350.0,110340.0,0.72635674]
[1756783837448,0.00521158,110350.0,110340.0,0.45832792]
[1756783837903,0.00521158,110350.0,110340.0,0.47926674]
[1756783838723,0.05521158,110350.0,110340.0,0.47926674]
[1756783840230,0.05521158,110350.0,110340.0,0.48127674]
[1756783840663,0.05521158,110350.0,110340.0,0.47926674]
[1756783840878,0.05521158,110350.0,110340.0,0.48127674]
[1756783841142,0.05521158,110350.0,110340.0,0.47926674]
[1756783841374,0.05521158,110350.0,110340.0,0.48127674]
[1756783841601,0.80490632,110350.0,110340.0,0.09491599]
[1756783842970,1.14490632,110350.0,110340.0,0.09291599]
[1756783843195,0.18128236,110330.0,110310.0,0.28727715]
[1756783843441,0.18128236,110330.0,110320.0,0.24683599]
[1756783843669,0.18326236,110330.0,110320.0,0.24683599]
[1756783843898,0.18326236,110330.0,110320.0,0.09191599]
[1756783844112,0.18635236,110330.0,110320.0,0.24679599]
[1756783844325,0.18635236,110330.0,110320.0,0.09191599]
[1756783844527,0.18635236,110330.0,110320.0,0.24683599]
[1756783844746,0.7548056,110330.0,110320.0,0.24683599]
[1756783844987,0.7548056,110330.0,110320.0,0.09191599]
[1756783845611,0.7548056,110330.0,110320.0,0.42812678]
[1756783848576,0.18635236,110330.0,110320.0,0.42812678]
[1756783848804,0.7548056,110330.0,110320.0,0.42812678]
[1756783849242,0.53222657,110330.0,110320.0,0.42812678]
[1756783849459,0.00198,110330.0,110320.0,0.43013678]
[1756783849671,0.31147262,110340.0,110330.0,0.18127435]
[1756783849672,0.62422662,110340.0,110330.0,0.18127435]
[1756783849855,0.62620662,110340.0,110330.0,0.27746626]
[1756783850098,0.91043324,110340.0,110330.0,0.27520034]
[1756783850315,0.91043324,110340.0,110330.0,0.27319034]
[1756783850523,0.34198,110340.0,110330.0,0.27319034]
[1756783850738,0.91043324,110340.0,110330.0,0.27319034]
[1756783850958,0.91043324,110340.0,110330.0,0.27520034]
[1756783851584,0.91043324,110340.0,110330.0,0.27620034]
[1756783852005,0.34198,110340.0,110330.0,0.27620034]
[1756783852241,0.28620662,110340.0,110330.0,0.27932034]
[1756783852700,0.28620662,110340.0,110330.0,0.28132034]
[1756783853026,0.05323158,110350.0,110340.0,0.18125793]
[1756783853237,0.3394382,110350.0,110340.0,0.42809392]
[1756783853725,0.80490632,110350.0,110340.0,0.24683599]
[1756783854213,0.80490632,110350.0,110340.0,0.09191599]
[1756783854982,0.80490632,110350.0,110340.0,0.27317392]
[1756783858007,0.62057482,110350.0,110340.0,0.27317392]
[1756783858153,0.4912682,110350.0,110340.0,0.27518392]
[1756783858375,0.3363482,110350.0,110340.0,0.27830392]
[1756783858776,0.3363482,110350.0,110340.0,0.27518392]
[1756783858986,0.3363482,110350.0,110340.0,0.27317392]
[1756783859165,0.5175897,110350.0,110340.0,0.27518392]
[1756783859364,0.05212158,110350.0,110340.0,0.27317392]
[1756783859574,0.6724697,110350.0,110340.0,0.27317392]
[1756783859989,0.95669632,110350.0,110340.0,0.09191599]
[1756783860194,0.95978632,110350.0,110340.0,0.27317392]
[1756783861663,0.95669632,110350.0,110340.0,0.27317392]
[1756783862029,0.38824308,110350.0,110340.0,0.27317392]
[1756783862245,0.77545482,110350.0,110340.0,0.27317392]
[1756783862655,0.95669632,110350.0,110340.0,0.27317392]
[1756783863597,0.38824308,110350.0,110340.0,0.27317392]
[1756783863813,0.95669632,110350.0,110340.0,0.27317392]
[1756783864469,0.78134257,110350.0,110340.0,0.27317392]
[1756783864673,0.78232257,110350.0,110340.0,0.27629392]
[1756783864871,0.78232257,110350.0,110340.0,0.27830392]
[1756783865245,0.027241,110360.0,110350.0,0.1812415]
[1756783865624,0.31146762,110360.0,110350.0,0.435283]
[1756783865831,0.28422662,110360.0,110350.0,0.43301749]
[1756783866260,0.02025482,110370.0,110350.0,0.43301749]
[1756783866507,0.02025482,110370.0,110360.0,0.27837638]
[1756783866705,0.99659391,110380.0,110370.0,0.18120866]
[1756783866909,0.01806467,110370.0,110360.0,0.18419508]
[1756783867120,0.00198,110370.0,110360.0,0.27812107]
[1756783867346,0.99667945,110380.0,110360.0,0.27812107]
[1756783867567,0.99667945,110380.0,110370.0,0.18120866]
[1756783867817,1.28288607,110380.0,110370.0,0.09191599]
[1756783868538,0.71443283,110380.0,110370.0,0.09191599]
[1756783868760,1.61686172,110380.0,110370.0,0.09191599]
[1756783869270,0.18125793,110340.0,110330.0,0.16231069]
[1756783869499,0.74971117,110340.0,110330.0,0.25125668]
[1756783869964,0.75179117,110340.0,110330.0,0.09641668]
[1756783870190,1.06531853,110340.0,110330.0,0.09641668]
[1756783870418,0.78109191,110340.0,110330.0,0.09641668]
[1756783870653,0.77911191,110340.0,110330.0,0.09841668]
[1756783870890,0.7791974,110340.0,110330.0,0.09841668]
[1756783871737,0.7791974,110340.0,110330.0,0.10141668]
[1756783872403,0.7791974,110340.0,110330.0,0.09941668]
[1756783872640,0.7811774,110340.0,110330.0,0.09641668]
[1756783876827,0.7791974,110340.0,110330.0,0.09641668]
[1756783877902,1.06342402,110340.0,110330.0,0.09641668]
[1756783878374,1.06540402,110340.0,110330.0,0.09641668]
[1756783879353,1.06740402,110340.0,110330.0,0.09641668]
[1756783879556,1.06640402,110340.0,110330.0,0.09641668]
[1756783879759,1.06540402,110340.0,110330.0,0.09641668]
[1756783880165,1.68963064,110340.0,110330.0,0.00450069]
[1756783880366,1.45320552,110340.0,110330.0,0.00450069]
[1756783881139,1.45420552,110340.0,110330.0,0.00450069]
[1756783881774,1.60904552,110340.0,110330.0,0.00450069]
[1756783881977,1.67872552,110340.0,110330.0,0.00450069]
[1756783882380,1.96295214,110340.0,110330.0,0.00450069]
[1756783882791,1.99202025,110340.0,110330.0,0.00450069]
[1756783883006,1.70779363,110340.0,110330.0,0.00450069]
[1756783883367,1.99202025,110340.0,110330.0,0.00450069]
[1756783883784,2.65238948,110340.0,110330.0,0.00450069]
[1756783883991,7.73275025,110340.0,110330.0,0.00450069]
[1756783884609,7.71578706,110340.0,110330.0,0.00450069]
[1756783884814,7.64082437,110340.0,110330.0,0.00450069]
[1756783885392,7.60822106,110340.0,110330.0,0.00450069]
[1756783885592,6.75663785,110340.0,110330.0,0.00450069]
[1756783887099,6.7396907,110340.0,110330.0,0.00450069]
[1756783887536,0.52130722,110310.0,110300.0,0.00037092]
[1756783887711,1.27265794,110310.0,110300.0,0.09228691]
[1756783887965,1.27473794,110310.0,110300.0,0.09228691]
[1756783888388,1.27473794,110310.0,110300.0,0.09726691]
[1756783888769,1.30299194,110310.0,110300.0,0.09228691]
[1756783889417,1.30399194,110310.0,110300.0,0.09429691]
[1756783889621,1.30299194,110310.0,110300.0,0.09228691]
[1756783889826,1.30399194,110310.0,110300.0,0.09228691]
[1756783890233,1.30399194,110310.0,110300.0,0.09525691]
[1756783890662,1.30299194,110310.0,110300.0,0.09726691]
[1756783890905,1.34480252,110310.0,110300.0,0.09726691]
[1756783891129,1.0065753,110310.0,110300.0,0.27859057]
[1756783891396,0.04281058,110310.0,110300.0,0.27859057]
[1756783891623,0.32740557,110310.0,110300.0,0.43343057]
[1756783892089,0.34556327,110310.0,110300.0,0.43343057]
[1756783892299,0.34456327,110310.0,110300.0,0.43443057]
[1756783892446,0.62915826,110310.0,110300.0,0.27959057]
[1756783892649,0.62915826,110310.0,110300.0,0.28159057]
[1756783892852,0.34456327,110310.0,110300.0,0.28159057]
[1756783893056,0.28459499,110310.0,110300.0,0.28159057]
[1756783893262,0.79383827,110330.0,110310.0,0.18130722]
[1756783893470,0.28459499,110320.0,110310.0,0.27322321]
[1756783893866,0.28459499,110320.0,110310.0,0.27523321]
[1756783894247,0.28459499,110320.0,110310.0,0.27820321]
[1756783894447,0.32485066,110320.0,110310.0,0.27820321]
[1756783894653,0.50614145,110320.0,110310.0,0.27820321]
[1756783895295,0.32485066,110320.0,110310.0,0.27820321]
[1756783895477,0.34314297,110320.0,110310.0,0.27820321]
[1756783895746,0.34314297,110320.0,110310.0,0.27920321]
[1756783896140,0.05854798,110320.0,110310.0,0.27920321]
[1756783896365,0.34314297,110320.0,110310.0,0.27920321]
[1756783896581,0.28459499,110320.0,110310.0,0.27920321]
[1756783897127,0.46786578,110320.0,110310.0,0.09291599]
[1756783897329,0.46786578,110320.0,110310.0,0.09813599]
[1756783898331,0.18327079,110320.0,110310.0,0.09813599]
[1756783898597,0.46786578,110320.0,110310.0,0.09813599]
[1756783899236,0.50918683,110320.0,110310.0,0.09813599]
[1756783899437,0.50918683,110320.0,110310.0,0.09291599]
[1756783899678,0.52747516,110320.0,110310.0,0.09291599]
[1756783899901,0.52955516,110320.0,110310.0,0.09291599]
[1756783900125,0.93610702,110320.0,110310.0,0.001]
[1756783900331,1.04098952,110320.0,110310.0,0.001]
[1756783900918,1.04198952,110320.0,110310.0,0.001]
[1756783901572,1.04098952,110320.0,110310.0,0.001]
[1756783901780,1.04406952,110320.0,110310.0,0.001]
[1756783902390,0.52130722,110310.0,110300.0,0.00037092]
[1756783902511,1.0904972,110310.0,110300.0,0.00037092]
[1756783902745,1.0924772,110310.0,110300.0,0.00559092]
[1756783902941,1.1197312,110310.0,110300.0,0.00559092]
[1756783903592,1.1207312,110310.0,110300.0,0.00559092]
[1756783903823,1.1217312,110310.0,110300.0,0.00559092]
[1756783904055,1.2765312,110310.0,110300.0,0.00559092]
[1756783905101,1.2472972,110310.0,110300.0,0.00559092]
[1756783905963,1.2745522,110310.0,110300.0,0.00559092]
[1756783906163,1.2735522,110310.0,110300.0,0.00559092]
[1756783906449,1.2725522,110310.0,110300.0,0.00559092]
[1756783906794,0.28459499,110310.0,110300.0,0.27983057]
[1756783910408,0.7504972,110310.0,110300.0,0.27983057]
[1756783910618,0.7524772,110310.0,110300.0,0.09850691]
[1756783911874,0.58090017,110320.0,110300.0,0.28209711]
[1756783912091,0.58090017,110320.0,110310.0,0.27632321]
[1756783912303,0.58090017,110320.0,110310.0,0.27844321]
[1756783913334,0.86649516,110320.0,110310.0,0.27844321]
[1756783913534,0.86749516,110320.0,110310.0,0.27844321]
[1756783913751,0.86847516,110320.0,110310.0,0.27844321]
[1756783913955,0.86847516,110320.0,110310.0,0.09713599]
[1756783914161,0.86947516,110320.0,110310.0,0.09713599]
[1756783914369,0.86947516,110320.0,110310.0,0.09191599]
[1756783914701,0.86847516,110320.0,110310.0,0.09191599]
[1756783915119,0.86747516,110320.0,110310.0,0.09191599]
[1756783915489,1.15207015,110320.0,110310.0,0.09291599]
[1756783916117,0.86747516,110320.0,110310.0,0.09291599]
[1756783916586,1.15207015,110320.0,110310.0,0.09291599]
[1756783917143,0.86747516,110320.0,110310.0,0.09813599]
[1756783917392,1.02219516,110320.0,110310.0,0.09813599]
[1756783917607,1.30679015,110320.0,110310.0,0.09813599]
[1756783917919,1.15207015,110320.0,110310.0,0.09813599]
[1756783918144,1.02021516,110320.0,110310.0,0.27944321]
[1756783918564,0.73562017,110320.0,110310.0,0.27944321]
[1756783918773,1.02021516,110320.0,110310.0,0.09813599]
[1756783918979,1.02219516,110320.0,110310.0,0.09813599]
[1756783919491,0.86747516,110320.0,110310.0,0.09813599]
[1756783919685,1.15207015,110320.0,110310.0,0.09813599]
[1756783919912,0.86747516,110320.0,110310.0,0.09813599]
[1756783920320,1.04177061,110320.0,110310.0,0.09291599]
[1756783920469,1.04177061,110320.0,110310.0,0.09813599]
[1756783920679,1.3263656,110320.0,110310.0,0.09813599]
[1756783921331,1.30679015,110320.0,110310.0,0.09813599]
[1756783922282,1.30679015,110320.0,110310.0,0.09291599]
[1756783923110,1.32844678,110320.0,110310.0,0.09291599]
[1756783923336,1.30679015,110320.0,110310.0,0.09291599]
[1756783924192,1.32736734,110320.0,110310.0,0.09291599]
[1756783924407,0.73860017,110320.0,110310.0,0.09291599]
[1756783924635,1.30779015,110320.0,110310.0,0.09191599]
[1756783924854,1.32944823,110320.0,110310.0,0.09191599]
[1756783925094,1.33044823,110320.0,110310.0,0.09191599]
[1756783925305,1.32944823,110320.0,110310.0,0.09191599]
[1756783926010,0.75917825,110320.0,110310.0,0.09191599]
[1756783926234,0.18130722,110310.0,110300.0,0.00037092]
[1756783926472,0.7504972,110310.0,110300.0,0.09228691]
[1756783926710,0.7524772,110310.0,110300.0,0.09228691]
[1756783927158,0.46788221,110310.0,110300.0,0.09228691]
[1756783927375,0.7524772,110310.0,110300.0,0.09742691]
[1756783927987,0.7524772,110310.0,110300.0,0.09842691]
[1756783929142,0.7524772,110310.0,110300.0,0.27461057]
[1756783929400,0.7524772,110310.0,110300.0,0.27975057]
[1756783929609,0.7504972,110310.0,110300.0,0.27975057]
[1756783929853,0.28459499,110310.0,110300.0,0.27975057]
[1756783930569,0.58090017,110320.0,110310.0,0.18130722]
[1756783930709,0.88507888,110320.0,110310.0,0.43000321]
[1756783930914,0.86549516,110320.0,110310.0,0.43304321]
[1756783931645,0.58090017,110320.0,110310.0,0.43304321]
[1756783931871,0.86549516,110320.0,110310.0,0.43304321]
[1756783932311,0.86649516,110320.0,110310.0,0.43304321]
[1756783932748,0.86749516,110320.0,110310.0,0.43304321]
[1756783932953,0.58290017,110320.0,110310.0,0.43304321]
[1756783933374,0.86649516,110320.0,110310.0,0.25173599]
[1756783933837,0.86847516,110320.0,110310.0,0.25173599]
[1756783934245,0.86649516,110320.0,110310.0,0.25173599]
[1756783934423,0.86549516,110320.0,110310.0,0.25173599]
[1756783934984,0.86549516,110320.0,110310.0,0.25273599]
[1756783935384,0.05960938,110320.0,110310.0,0.43404321]
[1756783935676,0.52127456,110330.0,110320.0,0.18129079]
[1756783935879,0.82546048,110330.0,110320.0,0.27530678]
[1756783936086,0.64418592,110330.0,110320.0,0.27834678]
[1756783936434,0.82546027,110330.0,110320.0,0.27834678]
[1756783936974,0.82314424,110330.0,110320.0,0.27834678]
[1756783937145,0.53854925,110330.0,110320.0,0.27834678]
[1756783937344,0.82314424,110330.0,110320.0,0.27834678]
[1756783937756,0.82512424,110330.0,110320.0,0.09705599]
[1756783937982,0.82612424,110330.0,110320.0,0.09705599]
[1756783938421,0.98076424,110330.0,110320.0,0.09191599]
[1756783938622,1.00035046,110330.0,110320.0,0.09191599]
[1756783939172,1.04208,110330.0,110320.0,0.09191599]
[1756783943386,0.88744,110330.0,110320.0,0.09191599]
[1756783943590,1.04208,110330.0,110320.0,0.09191599]
[1756783945919,0.70616565,110330.0,110320.0,0.27834678]
[1756783946129,0.68459943,110330.0,110320.0,0.28034678]
[1756783946970,0.34459943,110330.0,110320.0,0.28034678]
[1756783947591,0.34443654,110330.0,110320.0,0.28034678]
[1756783948154,0.302707,110330.0,110320.0,0.28034678]
[1756783949750,0.0172749,110330.0,110320.0,0.28034678]
[1756783949956,0.301707,110330.0,110320.0,0.28134678]
[1756783950159,0.300707,110330.0,110320.0,0.28134678]
[1756783950587,0.300707,110330.0,110320.0,0.28334678]
[1756783950954,0.0162749,110330.0,110320.0,0.35306678]
[1756783951163,0.28451759,110340.0,110330.0,0.18127435]
[1756783951363,0.28451759,110340.0,110330.0,0.43297034]
[1756783951965,0.30070184,110340.0,110330.0,0.43297034]
[1756783952583,0.32794284,110340.0,110330.0,0.43297034]
[1756783953373,0.04351074,110340.0,110330.0,0.43297034]
[1756783953632,0.32794284,110340.0,110330.0,0.43397034]
[1756783954187,0.79363287,110340.0,110330.0,0.27933034]
[1756783954400,0.61237494,110340.0,110330.0,0.43393034]
[1756783955837,0.04351074,110340.0,110330.0,0.43393034]
[1756783956041,0.61237494,110340.0,110330.0,0.43393034]
[1756783956242,0.61434494,110340.0,110330.0,0.43393034]
[1756783956467,0.61237494,110340.0,110330.0,0.43393034]
[1756783958121,0.61434494,110340.0,110330.0,0.43393034]
[1756783958358,0.32794284,110340.0,110330.0,0.43393034]
[1756783958562,0.61237494,110340.0,110330.0,0.43393034]
[1756783959211,0.50920077,110340.0,110330.0,0.43393034]
[1756783959536,0.32794284,110340.0,110330.0,0.43393034]
[1756783961786,0.61237494,110340.0,110330.0,0.43393034]
[1756783962375,0.01626974,110340.0,110330.0,0.71836244]
[1756783962758,8.549e-05,110340.0,110330.0,1.02373336]
[1756783962963,8.549e-05,110340.0,110330.0,0.73930126]
[1756783963403,8.549e-05,110340.0,110330.0,0.76653626]
[1756783963946,8.549e-05,110340.0,110330.0,1.05096836]
[1756783965383,8.549e-05,110340.0,110330.0,1.10096836]
[1756783965823,8.549e-05,110340.0,110330.0,1.44096836]
[1756783966040,0.00068508,110380.0,110370.0,0.18120866]
[1756783966253,0.28451763,110380.0,110370.0,0.49740465]
[1756783966469,0.28451763,110380.0,110370.0,0.49954465]
[1756783966679,0.28451763,110380.0,110370.0,0.50249465]
[1756783967495,0.28451763,110380.0,110370.0,0.50645465]
[1756783967789,0.30112591,110380.0,110370.0,0.35189465]
[1756783968032,0.01669381,110380.0,110370.0,0.35189465]
[1756783968444,0.01669381,110380.0,110370.0,0.50645465]
[1756783969088,0.01669381,110380.0,110370.0,0.52839347]
[1756783969516,0.01669381,110380.0,110370.0,0.52439347]
[1756783969695,0.01669381,110380.0,110370.0,0.52339347]
[1756783969849,0.01669381,110380.0,110370.0,0.52439347]
[1756783970063,0.01669381,110380.0,110370.0,0.80982557]
[1756783970651,0.01669381,110380.0,110370.0,0.52839347]
[1756783970863,0.30112591,110380.0,110370.0,0.50761465]
[1756783971070,1.05524235,110380.0,110370.0,0.09691599]
[1756783971270,0.79804425,110380.0,110370.0,0.25203599]
[1756783971499,1.08247635,110380.0,110370.0,0.25203599]
[1756783971724,0.61476201,110380.0,110370.0,0.43633465]
[1756783971927,0.79595425,110380.0,110370.0,0.43733465]
[1756783972142,0.79595425,110380.0,110370.0,0.43224465]
[1756783972343,0.79595425,110380.0,110370.0,0.42824465]
[1756783972959,0.79804425,110380.0,110370.0,0.09191599]
[1756783973190,0.79804425,110380.0,110370.0,0.24703599]
[1756783973984,0.79595425,110380.0,110370.0,0.42824465]
[1756783974408,0.79595425,110380.0,110370.0,0.09191599]
[1756783974623,0.79804425,110380.0,110370.0,0.24711599]
[1756783975387,1.08247635,110380.0,110370.0,0.09191599]
[1756783975619,1.44979709,110380.0,110370.0,0.09191599]
[1756783975989,1.44979709,110380.0,110370.0,0.43333465]
[1756783975990,0.04592781,110380.0,110370.0,0.43333465]
[1756783976234,1.08447635,110380.0,110370.0,0.09191599]
[1756783976474,0.22809005,110380.0,110370.0,0.27312465]
[1756783976670,0.79695425,110380.0,110370.0,0.27312465]
[1756783977436,0.79795425,110380.0,110370.0,0.09191599]
[1756783977791,0.79795425,110380.0,110370.0,0.27312465]
[1756783977999,0.79695425,110380.0,110370.0,0.27312465]
[1756783978200,0.79795425,110380.0,110370.0,0.09191599]
[1756783978412,0.79795425,110380.0,110370.0,0.24751599]
[1756783978586,0.79695425,110380.0,110370.0,0.24751599]
[1756783978912,0.79795425,110380.0,110370.0,0.24751599]
[1756783979372,0.79795425,110380.0,110370.0,0.42872465]
[1756783979545,0.79795425,110380.0,110370.0,0.24751599]
[1756783980423,0.79795425,110380.0,110370.0,0.42872465]
[1756783981039,0.79795425,110380.0,110370.0,0.24751599]
[1756783981193,0.61676201,110380.0,110370.0,0.43381465]
[1756783981406,0.79795425,110380.0,110370.0,0.42872465]
[1756783981622,1.08447635,110380.0,110370.0,0.09191599]
[1756783981826,0.52122349,110370.0,110340.0,0.19326559]
[1756783982024,0.46565718,110360.0,110350.0,0.42871725]
[1756783982282,0.2864021,110360.0,110350.0,0.27315725]
[1756783982451,0.49486518,110360.0,110350.0,0.09191599]
[1756783982628,0.3157301,110360.0,110350.0,0.24751599]
[1756783982998,0.49486518,110360.0,110350.0,0.42875749]
[1756783983118,0.5980722,110360.0,110350.0,0.43075749]
[1756783983749,0.56881324,110360.0,110350.0,0.43584749]
[1756783984099,0.56881324,110360.0,110350.0,0.43384749]